bitfinex-derivatives/quotes_ETHF0:USTF0_20251119
["timestamp","ask_amount","ask_price","bid_price","bid_amount"]
[1763527008200,0.00489628,3062.7,3062.3,0.5294]
[1763527008400,0.00489628,3062.7,3062.3,3.7372]
[1763527008803,0.00489628,3062.7,3062.4,0.52939]
[1763527009106,0.00489628,3062.7,3062.6,1.4305]
[1763527009408,0.00489628,3062.7,3062.6,1.95985]
[1763527009808,0.00489628,3062.7,3062.6,0.52935]
[1763527010007,1.49639628,3062.7,3062.6,0.52935]
[1763527010511,0.00489628,3062.7,3062.6,1.95985]
[1763527011203,0.00489628,3062.7,3062.6,1.4305]
[1763527011408,0.00489628,3062.7,3062.6,1.95985]
[1763527012309,0.00489628,3062.7,3062.6,3.93569332]
[1763527015815,0.52909,3064.1,3062.6,1.97584332]
[1763527016013,1.4915,3063.7,3063.4,0.52921]
[1763527016415,1.4915,3063.3,3063.2,3.2078]
[1763527016811,1.4915,3063.3,3063.2,3.73705]
[1763527017107,0.00263405,3063.3,3063.2,5.17072085]
[1763527021313,3.2078,3064.2,3063.7,1.4054]
[1763527021520,3.2078,3064.2,3063.7,0.52916]
[1763527021718,1.25073,3064.5,3063.8,0.52915]
[1763527021918,0.7217,3064.5,3063.8,0.52915]
[1763527022117,1.4466,3063.3,3063.2,3.21097085]
[1763527022317,1.44949278,3063.3,3063.2,3.21097085]
[1763527022516,1.44949278,3063.3,3063.2,0.00317085]
[1763527022715,7.44949278,3063.3,3062.9,0.00489628]
[1763527022920,2.3312,3063.0,3062.9,0.00489628]
[1763527024018,2.3312,3063.0,3062.9,0.00740737]
[1763527024519,1.4466,3063.0,3062.9,0.00740737]
[1763527024816,1.4466,3063.0,3062.9,1.41280737]
[1763527025021,2.3312,3063.0,3062.9,0.00740737]
[1763527026321,5.539,3063.0,3062.9,0.00740737]
[1763527026516,5.539,3063.0,3061.8,1.97584332]
[1763527026517,1.4466,3062.4,3061.9,3.2078]
[1763527026823,1.4466,3062.0,3061.9,3.2078]
[1763527027422,1.4466,3062.0,3061.9,3.21098367]
[1763527027923,3.2078,3062.9,3062.3,1.4054]
[1763527028421,1.4466,3062.4,3062.0,0.8109]
[1763527028623,1.4466,3062.4,3062.0,1.34035]
[1763527028916,1.4466,3062.4,3061.9,3.21098367]
[1763527029320,1.4466,3062.4,3061.9,3.74045367]
[1763527030219,4.0496,3062.5,3061.9,3.74045367]
[1763527030220,1.4466,3062.0,3061.9,3.21098367]
[1763527030413,2.3312,3062.0,3061.9,0.00318367]
[1763527033125,3.2078,3062.1,3061.9,1.40858367]
[1763527033327,2.3312,3062.0,3061.9,0.00318367]
[1763527034530,1.4466,3062.0,3061.9,0.00318367]
[1763527036133,2.3312,3062.0,3061.9,0.00318367]
[1763527037230,1.4466,3062.0,3061.9,0.00318367]
[1763527037622,1.4466,3062.0,3061.9,0.53265367]
[1763527037932,1.4466,3062.0,3061.9,1.93805367]
[1763527038129,1.4466,3060.8,3059.0,0.8109]
[1763527038332,3.2078,3060.0,3059.1,3.2078]
[1763527038632,0.8846,3060.5,3059.0,0.8109]
[1763527038633,3.2078,3060.4,3059.5,4.0187]
[1763527038827,1.4466,3059.2,3059.1,3.2078]
[1763527039226,1.45000387,3059.2,3059.1,3.21183463]
[1763527039826,1.45000387,3059.2,3059.1,0.00403463]
[1763527040330,4.65780387,3059.2,3059.1,0.00403463]
[1763527040726,4.65780387,3059.2,3059.1,0.53399463]
[1763527040932,0.00340387,3059.2,3059.1,1.40943463]
[1763527042230,1.45000387,3059.2,3059.1,0.00403463]
[1763527043539,0.4423,3058.8,3058.2,3.29844158]
[1763527043737,3.2078,3058.6,3058.2,4.11394158]
[1763527044042,3.2078,3059.0,3058.6,0.53004]
[1763527044240,3.2078,3059.0,3058.2,4.11394158]
[1763527044538,3.2078,3059.0,3058.3,4.95199436]
[1763527045135,3.2078,3059.0,3058.7,0.53002]
[1763527045437,0.00340387,3059.2,3058.8,0.8155]
[1763527045635,3.2078,3059.0,3058.6,5.18404]
[1763527045828,3.2078,3059.0,3058.8,0.53001]
[1763527046028,0.00340387,3059.2,3059.0,0.52998]
[1763527046228,0.00340387,3059.2,3058.8,0.8155]
[1763527046427,0.00340387,3059.2,3059.0,0.52997]
[1763527047029,1.3188,3059.1,3059.0,0.52997]
[1763527047238,1.3188,3059.1,3058.9,0.52999]
[1763527047834,1.3188,3059.1,3058.7,3.2078]
[1763527048036,1.3188,3059.1,3058.8,0.53001]
[1763527048436,1.3188,3059.1,3058.9,0.52998]
[1763527048742,0.00340387,3059.2,3059.0,0.52997]
[1763527049235,0.00340387,3059.2,3059.1,1.3604]
[1763527050336,1.3831,3059.1,3058.8,0.7841]
[1763527050537,1.3831,3059.1,3058.9,4.02599]
[1763527051039,0.00340387,3059.2,3059.0,0.52997]
[1763527051434,0.00340387,3059.2,3059.1,1.3604]
[1763527051637,3.2078,3059.9,3059.8,1.3604]
[1763527052535,0.00424897,3059.9,3059.8,1.3604]
[1763527052741,3.2078,3060.3,3060.2,1.3604]
[1763527053137,4.5909,3060.3,3060.2,3.949]
[1763527053334,3.2078,3060.3,3060.2,5.3094]
[1763527053536,3.2078,3060.3,3060.2,9.3824]
[1763527053740,3.21087824,3060.3,3060.2,9.3824]
[1763527053938,3.21087824,3060.3,3059.9,8.022]
[1763527053939,1.3831,3060.1,3059.9,8.022]
[1763527054242,3.21087824,3060.3,3060.0,0.7841]
[1763527054844,3.21087824,3060.3,3060.1,0.52978]
[1763527055143,3.21087824,3060.3,3060.0,0.7841]
[1763527055445,3.21087824,3060.3,3059.9,8.5518]
[1763527055645,3.21087824,3060.3,3060.0,0.7841]
[1763527055840,3.21087824,3060.3,3060.2,1.3604]
[1763527056944,1.3831,3060.2,3059.6,3.2078]
[1763527057146,1.3831,3059.7,3059.5,0.00490436]
[1763527057536,3.2078,3059.9,3059.8,1.3604]
[1763527058746,0.00307824,3060.3,3060.0,0.7841]
[1763527058747,3.21087824,3060.3,3060.0,0.7841]
[1763527059449,0.00307824,3060.3,3060.2,1.3604]
[1763527060038,3.2078,3061.2,3060.9,0.52964]
[1763527060236,3.2078,3061.2,3060.8,5.017]
[1763527061044,3.21085835,3061.2,3060.9,0.52964]
[1763527061249,3.21085835,3061.2,3061.0,0.52962]
[1763527061542,3.21085835,3061.2,3061.0,0.7841]
[1763527061751,3.21085835,3061.2,3061.1,1.3604]
[1763527063549,0.00305835,3061.2,3061.1,1.3604]
[1763527064050,0.00305835,3061.2,3061.1,4.5682]
[1763527064249,1.3831,3060.9,3060.8,0.00425005]
[1763527064646,1.3831,3060.9,3060.8,8.02125005]
[1763527064955,1.3831,3060.9,3060.8,0.00425005]
[1763527066253,0.94363,3061.0,3060.3,5.3368]
[1763527066254,1.3831,3060.4,3060.3,5.3368]
[1763527066448,4.5909,3060.4,3059.7,3.2078]
[1763527066651,4.5909,3060.4,3060.0,0.5298]
[1763527066953,4.5909,3060.4,3059.9,4.728]
[1763527067253,4.5909,3060.4,3060.1,0.52978]
[1763527067856,4.5909,3060.4,3060.0,0.7841]
[1763527068154,4.5909,3060.4,3060.0,1.3139]
[1763527068355,4.5909,3060.4,3060.1,0.52978]
[1763527068557,4.5909,3060.4,3060.0,6.5881]
[1763527068756,4.5909,3060.4,3060.0,7.1179]
[1763527069959,4.5909,3060.4,3060.2,0.52976]
[1763527070155,3.2078,3060.4,3060.3,1.3604]
[1763527070355,3.2078,3060.9,3060.5,0.7841]
[1763527070754,3.2078,3060.9,3060.8,1.3604]
[1763527072460,3.2078,3060.9,3060.8,7.9384]
[1763527074859,0.00305835,3061.2,3061.0,0.7841]
[1763527075554,0.00305835,3061.2,3061.1,8.008]
[1763527075956,0.00305835,3061.2,3061.1,8.007]
[1763527077056,0.00305835,3061.2,3061.1,9.89701]
[1763527077257,3.2078,3061.7,3061.2,1.3604]
[1763527077453,3.2078,3061.7,3061.1,11.2148]
[1763527077653,1.2684,3061.5,3061.4,0.52956]
[1763527078155,3.2078,3061.7,3061.6,1.72373]
[1763527078358,3.21040604,3061.7,3061.6,1.72373]
[1763527080866,0.00260604,3061.7,3061.6,1.72373]
[1763527081362,0.00490436,3062.0,3061.9,1.72367]
[1763527081564,0.00490436,3062.0,3061.9,4.93147]
[1763527082456,0.00787023,3062.0,3061.9,4.93147]
[1763527083856,3.2078,3062.5,3062.4,1.72359]
[1763527084163,1.2684,3062.9,3062.8,0.52932]
[1763527084561,3.2078,3063.3,3063.0,0.52928]
[1763527084762,3.2078,3063.3,3063.0,1.30468]
[1763527084957,1.2684,3063.1,3063.0,1.19825438]
[1763527085260,3.21023402,3063.3,3063.1,0.52927]
[1763527085459,0.00243402,3063.3,3063.2,1.1942]
[1763527085763,0.00243402,3063.3,3063.2,1.72345]
[1763527086162,0.00243402,3063.3,3063.2,1.1942]
[1763527086359,1.2684,3063.1,3063.0,0.00405438]
[1763527086663,0.52939,3062.4,3062.0,0.7754]
[1763527086853,3.2078,3062.3,3061.6,3.2078]
[1763527087258,3.2078,3062.3,3061.7,0.5295]
[1763527087559,3.2078,3062.3,3061.7,0.00306332]
[1763527087755,3.2078,3062.3,3061.7,0.00796768]
[1763527087956,3.2078,3062.3,3062.0,0.7754]
[1763527088158,3.2078,3062.3,3062.1,0.52944]
[1763527088459,3.2078,3062.3,3062.1,0.52943]
[1763527089766,3.2078,3062.7,3062.5,0.7754]
[1763527090964,3.2078,3062.7,3062.5,1.30477]
[1763527091261,3.2078,3062.7,3062.5,0.7754]
[1763527092467,3.2078,3062.7,3062.6,1.72355]
[1763527092661,3.2078,3062.7,3062.5,0.7754]
[1763527092869,3.2078,3062.7,3062.5,1.30477]
[1763527093367,3.2078,3062.7,3062.5,0.7754]
[1763527093662,3.2078,3062.7,3062.5,1.30477]
[1763527094264,3.2078,3062.7,3062.5,0.7754]
[1763527094563,3.2078,3062.7,3062.0,0.7754]
[1763527095164,3.73714,3062.7,3062.1,0.52943]
[1763527095363,3.73714,3062.7,3062.0,0.7754]
[1763527095668,3.2078,3062.2,3062.0,1.30486]
[1763527096064,3.2078,3062.2,3062.0,0.7754]
[1763527096268,3.2078,3062.2,3062.0,1.30485]
[1763527096468,3.2078,3062.2,3062.1,1.1942]
[1763527096965,3.2078,3062.2,3062.0,0.7754]
[1763527097270,0.52947,3061.9,3061.7,0.00796768]
[1763527097467,3.2078,3061.8,3061.2,3.2078]
[1763527097770,3.2078,3061.4,3060.7,0.52968]
[1763527097963,3.2078,3061.0,3060.7,0.52968]
[1763527098476,3.21127403,3061.0,3060.7,0.53206972]
[1763527100175,3.21127403,3061.0,3060.8,0.52966]
[1763527100381,0.00347403,3061.0,3060.9,1.1942]
[1763527101175,0.00347403,3061.0,3060.7,3.73985972]
[1763527101478,0.00347403,3061.0,3060.7,6.60518972]
[1763527101773,3.2078,3061.4,3061.3,1.72378]
[1763527101971,3.2078,3061.4,3061.3,1.1942]
[1763527102380,3.2078,3061.9,3061.3,1.72376]
[1763527102681,3.21659198,3061.9,3061.3,1.72376]
[1763527103070,3.21659198,3061.9,3061.5,0.7165]
[1763527103783,3.21659198,3061.9,3061.5,1.24604]
[1763527104977,3.21659198,3061.9,3061.5,0.7165]
[1763527105184,3.21659198,3061.9,3061.6,0.52953]
[1763527105386,3.21659198,3061.9,3061.5,0.7165]
[1763527105886,3.21659198,3061.9,3061.7,0.52951]
[1763527106088,3.21659198,3061.9,3061.6,0.52952]
[1763527106588,3.21659198,3061.9,3061.5,0.7165]
[1763527107287,0.52951,3061.7,3061.2,3.2078]
[1763527107582,3.21659198,3061.9,3061.0,0.7754]
[1763527107791,3.2078,3061.3,3061.0,0.7654]
[1763527108888,3.2078,3061.3,3061.1,0.52961]
[1763527109382,3.2078,3061.3,3061.2,1.2743]
[1763527109589,3.2078,3061.8,3061.6,0.52952]
[1763527109791,0.00879198,3061.9,3061.8,1.80379]
[1763527111492,3.2078,3062.8,3062.1,1.2743]
[1763527111688,3.2078,3062.8,3062.0,0.7654]
[1763527111689,3.2078,3062.8,3062.2,3.73722]
[1763527112082,3.2078,3062.8,3062.2,3.2078]
[1763527112287,3.21075241,3062.8,3062.2,3.2078]
[1763527112492,3.21322121,3062.8,3062.2,0.00490436]
[1763527112691,3.21322121,3062.8,3062.2,3.21270436]
[1763527113093,3.21322121,3062.8,3062.2,3.74212436]
[1763527113387,3.21322121,3062.8,3062.5,0.7654]
[1763527114391,6.0,3062.7,3062.2,3.21270436]
[1763527114599,3.2078,3062.3,3060.5,5.8382]
[1763527114893,3.2078,3061.6,3061.2,0.52958]
[1763527115486,3.2078,3061.6,3061.4,0.52956]
[1763527115682,3.2078,3061.6,3061.1,0.00490436]
[1763527115886,3.2078,3061.6,3061.5,1.2743]
[1763527116096,3.2078,3062.0,3061.8,0.7654]
[1763527119397,3.73726,3062.0,3061.5,1.29494]
[1763527119699,3.2078,3061.6,3061.1,0.00490436]
[1763527119897,3.2078,3061.6,3061.3,0.52957]
[1763527120096,3.2078,3061.6,3061.5,0.7654]
[1763527122294,3.2078,3061.6,3061.1,0.00490436]
[1763527122494,3.2078,3061.6,3061.5,0.7654]
[1763527122705,3.73733,3061.6,3061.5,0.7654]
[1763527123005,3.2078,3061.6,3061.5,0.7654]
[1763527123696,3.73733,3061.6,3061.5,0.7654]
[1763527127202,0.52958,3061.3,3061.1,0.00490436]
[1763527127901,3.2078,3061.6,3061.1,0.00490436]
[1763527128107,3.2078,3061.6,3061.5,0.7654]
[1763527132012,3.2078,3061.6,3061.5,2.0397]
[1763527133013,3.2078,3061.6,3061.5,2.56924]
[1763527133310,3.2078,3061.6,3061.5,0.7654]
[1763527135114,3.2078,3061.6,3061.5,2.0397]
[1763527136013,3.2078,3061.6,3061.5,1.7126]
[1763527136615,3.2078,3061.6,3061.5,2.24214]
[1763527137616,3.2078,3061.6,3061.5,1.7126]
[1763527140322,3.2078,3061.6,3061.5,0.4383]
[1763527140812,3.2078,3061.6,3061.5,1.6174]
[1763527142013,3.2078,3061.6,3061.5,0.4383]
[1763527143424,3.2078,3061.6,3061.5,1.6174]
[1763527144724,3.2078,3061.6,3061.5,0.4383]
[1763527144907,3.73733,3061.6,3061.5,0.4383]
[1763527145112,3.73733,3061.6,3061.1,0.00490436]
[1763527146324,0.5296,3061.2,3061.1,0.00490436]
[1763527146524,3.7374,3061.2,3061.1,0.00490436]
[1763527147021,3.2078,3061.2,3061.1,0.00490436]
[1763527149523,3.7374,3061.2,3061.1,0.00490436]
[1763527151422,3.7374,3061.2,3061.1,4.36e-06]
[1763527151725,3.2078,3061.2,3060.7,0.00238972]
[1763527151925,3.2078,3060.8,3060.7,0.00238972]
[1763527152326,3.73746,3060.8,3060.7,0.00238972]
[1763527152728,3.2078,3060.8,3060.7,0.00238972]
[1763527153526,3.73746,3060.8,3060.7,0.00238972]
[1763527156621,3.2078,3060.8,3060.0,0.7654]
[1763527156822,0.52967,3060.8,3060.5,0.7501]
[1763527157022,3.2078,3060.6,3060.5,0.7501]
[1763527157527,3.74105191,3060.6,3060.5,0.75263885]
[1763527158629,3.74105191,3060.6,3060.5,0.00253885]
[1763527160124,0.52975,3060.3,3060.2,0.00490436]
[1763527160831,0.52975,3060.3,3060.2,4.36e-06]
[1763527161234,0.52975,3060.3,3060.2,0.00309791]
[1763527161933,0.52973,3060.5,3060.2,0.00309791]
[1763527162129,0.52974,3060.4,3060.2,0.00309791]
[1763527162525,3.21135191,3060.6,3060.5,0.6485]
[1763527163432,3.21135191,3060.6,3060.2,0.00309791]
[1763527163732,3.74107191,3060.6,3060.5,0.6485]
[1763527168444,3.21135191,3060.6,3060.5,0.6485]
[1763527168739,3.74105191,3060.6,3060.5,0.6485]
[1763527168944,3.21135191,3060.6,3060.5,1.7265]
[1763527169344,3.21135191,3060.6,3060.5,2.25622]
[1763527171440,3.21135191,3060.6,3060.5,1.7265]
[1763527171946,3.21135191,3060.6,3060.5,0.6485]
[1763527172248,3.21135191,3060.6,3060.5,1.7002]
[1763527173143,3.74105191,3060.6,3060.5,0.6485]
[1763527173344,3.74105191,3060.6,3060.5,1.7002]
[1763527175243,3.21135191,3060.6,3060.5,1.7002]
[1763527176048,3.21135191,3060.6,3060.5,2.22992]
[1763527177153,3.21135191,3060.6,3060.5,1.7002]
[1763527181360,3.21135191,3060.6,3060.5,2.22992]
[1763527183152,3.21135191,3060.6,3060.5,1.7002]
[1763527184059,3.21135191,3060.6,3060.5,2.22992]
[1763527184557,3.21135191,3060.6,3060.5,1.7002]
[1763527186462,3.21135191,3060.6,3060.5,2.22992]
[1763527188168,3.2078,3061.7,3061.5,0.6282]
[1763527188463,0.52953,3061.6,3061.5,0.6282]
[1763527188864,3.2078,3061.7,3061.5,0.6282]
[1763527189065,0.52953,3061.6,3061.5,0.6282]
[1763527189564,3.21097367,3061.7,3061.5,0.6282]
[1763527189765,3.21097367,3061.7,3061.6,1.58123]
[1763527190156,0.00317367,3061.7,3061.6,1.58123]
[1763527190554,0.00317367,3061.7,3061.6,1.0517]
[1763527191467,0.00317367,3061.7,3061.6,1.58123]
[1763527192163,0.00317367,3061.7,3061.5,0.6282]
[1763527192361,0.52956,3061.4,3061.3,0.00490436]
[1763527193366,0.52965,3060.9,3060.5,1.17822]
[1763527193763,3.73743,3061.1,3061.0,0.6282]
[1763527193957,3.2078,3061.1,3061.0,0.6282]
[1763527194164,3.2078,3061.1,3061.0,1.6799]
[1763527195063,3.73741,3061.1,3061.0,0.6282]
[1763527196968,0.52964,3061.0,3060.7,0.00490436]
[1763527197168,0.52965,3060.9,3060.7,0.00490436]
[1763527198675,0.52966,3060.8,3060.7,0.00490436]
[1763527201477,0.52964,3061.0,3060.7,0.00490436]
[1763527201676,0.52963,3061.0,3060.7,0.00490436]
[1763527201873,0.52963,3061.0,3060.7,1.05660436]
[1763527203272,3.2078,3061.1,3061.0,1.6888]
[1763527203471,3.2078,3061.1,3061.0,0.6398]
[1763527205078,3.2078,3061.1,3061.0,1.6888]
[1763527205278,0.52959,3061.3,3061.0,1.6888]
[1763527205772,0.52959,3061.3,3061.0,0.6398]
[1763527206180,3.73736,3061.5,3061.0,1.16943]
[1763527206371,3.2078,3061.5,3061.1,0.52961]
[1763527206572,0.53268367,3061.7,3061.4,1.049]
[1763527206778,0.00317367,3061.7,3061.5,0.6398]
[1763527206970,0.00317367,3061.7,3061.5,1.6888]
[1763527207173,0.00317367,3061.7,3061.5,0.6398]
[1763527207372,0.52953,3061.6,3061.5,0.6398]
[1763527207773,0.52958,3061.3,3061.0,0.6398]
[1763527207981,0.52958,3061.3,3061.0,1.6888]
[1763527208178,3.73736,3061.4,3061.0,1.6888]
[1763527208374,3.73736,3061.4,3061.3,1.049]
[1763527208579,3.2078,3061.4,3061.3,1.049]
[1763527209577,3.2078,3061.4,3061.3,1.57858]
[1763527209778,3.2078,3061.4,3061.3,1.049]
[1763527210287,0.52953,3061.6,3061.5,0.6398]
[1763527210583,0.00317367,3061.7,3061.6,1.049]
[1763527210786,0.53268367,3061.7,3061.5,0.6398]
[1763527211483,0.53268367,3061.7,3061.5,1.6888]
[1763527211784,0.52953,3061.6,3061.5,0.6398]
[1763527211980,0.52958,3061.3,3061.0,1.6888]
[1763527213285,0.52961,3061.1,3061.0,0.6398]
[1763527214586,0.5296,3061.2,3061.0,0.6398]
[1763527215586,0.52961,3061.1,3061.0,0.6398]
[1763527216587,3.2078,3061.3,3061.0,0.6398]
[1763527216783,3.2078,3061.3,3060.7,0.00490436]
[1763527216784,0.52966,3060.8,3060.7,0.00490436]
[1763527216981,3.73746,3060.8,3060.7,0.00490436]
[1763527221892,3.2078,3060.8,3060.7,1.05390436]
[1763527222186,3.73746,3060.8,3060.7,0.00490436]
[1763527222391,3.2078,3060.8,3060.7,1.00770436]
[1763527229694,3.73746,3060.8,3060.7,1.00770436]
[1763527231393,0.5297,3060.6,3060.5,0.6398]
[1763527231599,0.5297,3060.6,3060.5,1.5985]
[1763527232298,0.5297,3060.6,3060.5,0.6398]
[1763527232701,0.52975,3060.3,3060.2,0.00799791]
[1763527232992,3.73755,3060.3,3060.2,0.00799791]
[1763527233494,12.47500001,3060.3,3059.0,0.6398]
[1763527233690,0.52994,3059.2,3059.0,0.6398]
[1763527234392,0.53375856,3059.2,3059.0,0.64321166]
[1763527235595,0.00381856,3059.2,3059.0,0.64321166]
[1763527235796,0.53375856,3059.2,3059.0,0.64321166]
[1763527236604,0.53375856,3059.2,3059.0,1.60191166]
[1763527237098,0.53375856,3059.2,3059.0,0.64321166]
[1763527238997,0.00381856,3059.2,3059.1,0.9587]
[1763527241902,0.00381856,3059.2,3059.1,1.48866]
[1763527243007,0.00381856,3059.2,3059.1,0.9587]
[1763527244706,0.00381856,3059.2,3059.1,1.48866]
[1763527250611,0.00381856,3059.2,3059.1,0.9587]
[1763527251812,0.00381856,3059.2,3059.1,1.48866]
[1763527252508,0.00381856,3059.2,3059.1,0.9587]
[1763527253814,0.00381856,3059.2,3059.1,1.48866]
[1763527255612,0.00381856,3059.2,3059.1,0.9587]
[1763527256118,0.00381856,3059.2,3059.1,1.48866]
[1763527258826,0.00381856,3059.2,3059.1,0.9587]
[1763527259424,1.856e-05,3059.2,3059.1,1.48866]
[1763527259629,3.2078,3060.2,3060.1,0.8443]
[1763527260522,4.0617,3060.7,3060.6,0.8443]
[1763527260825,1.3836,3060.6,3060.5,0.5026]
[1763527261025,1.3836,3060.6,3060.0,0.5026]
[1763527261222,1.3836,3060.6,3060.1,0.52978]
[1763527261723,0.8539,3060.1,3059.8,0.00490436]
[1763527261927,1.38372,3059.9,3059.8,0.00490436]
[1763527264623,0.8539,3059.9,3059.8,0.00490436]
[1763527265717,1.38372,3059.9,3059.8,0.00490436]
[1763527266029,0.8539,3059.9,3059.8,0.00490436]
[1763527266429,1.38372,3059.9,3059.8,0.00490436]
[1763527267128,0.8539,3059.9,3059.8,0.00490436]
[1763527267630,0.8539,3059.9,3059.8,1.37904436]
[1763527268330,4.0617,3060.2,3060.1,0.8443]
[1763527268528,4.0617,3060.6,3060.5,1.3469]
[1763527268829,4.0617,3060.6,3060.5,0.5026]
[1763527269030,0.8539,3060.4,3060.3,1.37405]
[1763527269330,3.2078,3060.6,3060.5,1.3469]
[1763527269631,4.0617,3060.6,3060.5,1.3469]
[1763527270326,3.2078,3060.6,3060.5,1.3469]
[1763527270531,4.0617,3060.6,3060.5,1.3469]
[1763527271629,4.0617,3060.6,3060.5,0.5026]
[1763527272231,4.5914,3060.6,3060.5,0.5026]
[1763527272524,4.0617,3060.6,3060.5,0.5026]
[1763527273131,4.0617,3060.6,3060.5,1.3469]
[1763527275427,4.0617,3060.6,3060.1,0.52978]
[1763527275428,4.5914,3060.6,3060.1,0.52978]
[1763527275634,3.2078,3060.6,3060.5,1.3469]
[1763527275833,4.0617,3060.6,3060.5,1.3469]
[1763527276033,4.5914,3060.6,3060.5,1.3469]
[1763527276535,0.52973,3060.5,3060.0,3.7104]
[1763527276723,0.8539,3060.1,3060.0,4.5547]
[1763527277534,0.52973,3060.5,3060.0,4.5547]
[1763527277737,1.38363,3060.5,3060.4,0.8443]
[1763527277936,0.52974,3060.4,3060.0,0.5026]
[1763527278137,4.0617,3060.2,3060.1,0.8443]
[1763527278337,3.2078,3060.2,3060.1,0.8443]
[1763527278537,1.38362,3060.5,3060.4,0.8443]
[1763527278737,0.8539,3060.5,3060.4,0.8443]
[1763527278937,4.59560497,3060.7,3060.6,0.8443]
[1763527279339,0.5297,3060.6,3060.5,0.5026]
[1763527279636,0.8539,3059.9,3059.5,3.7104]
[1763527279941,4.59152,3059.9,3059.5,3.7104]
[1763527280135,4.0617,3059.9,3059.8,0.84920436]
[1763527280340,4.59152,3059.9,3059.8,0.00490436]
[1763527281437,4.0617,3059.9,3059.8,0.00490436]
[1763527281628,4.59152,3059.9,3059.8,0.00490436]
[1763527283933,4.0617,3059.9,3059.8,0.82290436]
[1763527284338,4.59152,3059.9,3059.8,0.82290436]
[1763527284638,4.59152,3059.9,3059.8,0.00490436]
[1763527285040,4.59152,3059.9,3059.8,0.82290436]
[1763527285837,4.59152,3059.9,3059.8,0.00490436]
[1763527288845,4.59152,3059.9,3059.0,0.64321166]
[1763527288846,1.34806,3059.1,3059.0,0.64321166]
[1763527289040,1.34806,3059.1,3059.0,1.45191166]
[1763527289345,0.8181,3059.1,3059.0,1.45191166]
[1763527290147,1.34806,3059.1,3059.0,1.45191166]
[1763527293643,0.8181,3059.1,3059.0,1.45191166]
[1763527293845,0.52996,3059.2,3059.0,1.45191166]
[1763527294049,1.36536,3059.2,3059.1,0.8087]
[1763527294949,1.36536,3059.1,3059.0,0.64321166]
[1763527295148,1.36536,3059.1,3059.0,0.00341166]
[1763527296454,4.57312,3059.3,3059.2,0.8087]
[1763527298750,0.52996,3059.1,3059.0,0.49961166]
[1763527298952,1.36536,3059.1,3059.0,1.30831166]
[1763527301151,0.8354,3059.1,3059.0,1.30831166]
[1763527301348,4.0432,3059.3,3059.2,0.8087]
[1763527301656,0.00490436,3059.4,3059.3,0.8087]
[1763527302953,0.00490436,3059.4,3059.3,1.33862]
[1763527303957,4.36e-06,3059.4,3059.3,1.33862]
[1763527306155,4.36e-06,3059.4,3059.3,7.33862]
[1763527306963,3.2078,3060.1,3060.0,0.8087]
[1763527308262,1.37004436,3060.4,3060.3,0.8087]
[1763527308757,0.84030436,3060.4,3060.3,0.8087]
[1763527308962,0.00490436,3060.4,3060.3,0.8087]
[1763527309465,0.00490436,3060.4,3060.3,1.33845]
[1763527310259,0.84030436,3060.4,3060.3,0.8087]
[1763527315068,0.00490436,3060.4,3060.3,0.8087]
[1763527315265,0.00490436,3060.4,3060.3,1.33845]
[1763527315473,1.3083,3061.0,3060.9,0.8087]
[1763527315772,1.3083,3061.0,3060.9,4.0165]
[1763527316465,1.31080792,3061.0,3060.9,4.0165]
[1763527320274,1.84043792,3061.0,3060.9,4.0165]
[1763527320475,1.84043792,3061.0,3060.6,0.00490436]
[1763527320476,1.28348,3060.7,3060.6,0.00490436]
[1763527321381,2.43403491,3060.7,3060.6,0.00490436]
[1763527321874,1.2417,3060.0,3059.9,3.2078]
[1763527322779,1.7715,3060.0,3059.9,3.2078]
[1763527323274,1.2417,3060.0,3059.9,3.9668]
[1763527323479,3.2078,3060.4,3060.1,0.759]
[1763527323775,1.28357,3060.2,3060.1,0.759]
[1763527323971,0.7538,3060.2,3060.1,0.759]
[1763527324165,1.28357,3060.2,3060.1,0.759]
[1763527324373,3.9616,3060.4,3060.3,0.759]
[1763527325571,0.7538,3060.4,3060.3,3.9668]
[1763527326276,0.7538,3060.4,3060.3,3.2078]
[1763527326471,0.52976,3060.3,3059.9,3.2078]
[1763527326677,1.2417,3060.0,3059.9,3.9668]
[1763527328974,0.52973,3060.4,3059.9,3.9668]
[1763527329175,4.4495,3060.5,3060.4,0.759]
[1763527329379,1.2417,3060.5,3060.4,0.759]
[1763527333781,0.7538,3060.4,3060.3,3.2078]
[1763527334181,0.7538,3060.4,3060.3,3.9668]
[1763527337786,0.6017678,3060.4,3060.3,3.9668]
[1763527338985,1.1314978,3060.4,3060.3,3.9668]
[1763527339285,1.1314978,3060.4,3060.3,3.2078]
[1763527340587,0.7538,3060.2,3060.1,1.28878]
[1763527341085,0.7538,3060.2,3060.1,0.759]
[1763527341789,0.7538,3060.2,3060.1,1.28878]
[1763527342389,0.4879,3060.5,3060.1,1.28878]
[1763527342587,1.2417,3060.5,3060.4,0.759]
[1763527342890,1.77142,3060.5,3060.4,0.759]
[1763527343900,1.2417,3060.5,3060.4,0.759]
[1763527344689,1.77142,3060.5,3060.4,0.759]
[1763527345591,1.2417,3060.5,3060.4,0.759]
[1763527345891,1.77142,3060.5,3060.4,0.759]
[1763527346889,0.7538,3060.3,3060.2,0.759]
[1763527347095,1.01762,3060.5,3060.1,0.52978]
[1763527347285,0.52972,3060.5,3060.4,0.7886]
[1763527347594,1.77702,3060.5,3060.4,0.7886]
[1763527347887,1.75602,3060.5,3060.4,0.7886]
[1763527350299,1.2263,3060.5,3060.4,0.7886]
[1763527350891,1.24420792,3061.0,3060.9,0.7712]
[1763527351401,0.00250792,3061.0,3060.9,4.50865]
[1763527351594,3.6957,3062.0,3061.5,1.30074]
[1763527351799,0.7688,3061.7,3061.6,3.2078]
[1763527352392,0.7688,3061.7,3061.6,3.979]
[1763527352593,0.4575,3063.5,3062.0,0.4475]
[1763527352796,1.2263,3063.5,3063.4,1.92054519]